Cogmind - Beta 15 @@@ ROGUE MODE // 2025.06.01 @ 21:40:12 Player: Nisakard Result: Destroyed by D-53 Grenadier with Mini Grenade Launcher Performance ------------- Evolutions (0) 0 Regions Visited (4) 800 Robots Destroyed (31) 155 Value Destroyed (457) 457 Prototype IDs (23) 460 Alien Tech Used (0) 0 Bonus (300) 300 TOTAL SCORE: 2172 Bonus ------- Aligned with FarCom 300 Cogmind --------- Core Integrity 0/250 Matter 300/300 Energy 250/250 System Corruption 0% Temperature Cool (0) Movement Core (750) Ox14 Location -9/Mines Parts ------- > --- POWER (1) -------- Ion Engine > --- PROPULSION (2) --- (None) > --- UTILITY (2) ------ High-capacity Storage Unit > --- WEAPON (2) ------- (None) > --- INVENTORY (20) --- Ion Engine Wheel Wheel Scrap Suit High-capacity Matter Pod (200) Experimental Sensor Array Improved Terrain Scanner Propulsion Shielding Utility Shielding Spread Laser Makeshift Shrapnel Gun Grenade Launcher Grenade Launcher Mining Laser Deploy-a-Sentry Deploy-a-Sentry Deploy-a-Sentry Peak State ------------ > --- POWER ------------ Ion Engine > --- PROPULSION ------- Wheel Wheel > --- UTILITY ---------- High-capacity Storage Unit Light Armor Plating > --- WEAPON ----------- Makeshift Shrapnel Gun Hammer > --- INVENTORY -------- Wheel Wheel Scrap Suit High-capacity Matter Pod Improved Terrain Scanner Propulsion Shielding Utility Shielding Grenade Launcher Grenade Launcher Mining Laser Hammer Deploy-a-Sentry Deploy-a-Sentry Deploy-a-Sentry [Rating: 14] Favorites ----------- Power Light Ion Engine Engine Light Ion Engine Propulsion Wheel Wheel Wheel Utility High-capacity Storage Unit Device Seismic Detector Storage High-capacity Storage Unit Protection Light Armor Plating Weapon Hammer Energy Gun Small Laser Ballistic Gun Makeshift Shrapnel Gun Launcher Grenade Launcher Impact Weapon Hammer Build | -11 -10 -10 -10 -9 ------- Run | Yrd Mat Min Exi Min Slots Evolved . | . . . . . Power . | . . . . . Propulsion . | . . . . . Utility . | . . . . . Weapon . | . . . . . Parts Attached 22 | 8 6 2 1 5 Power 2 | 1 . . . 1 Engine 2 | 1 . . . 1 Core . | . . . . . Reactor . | . . . . . Propulsion 7 | 2 2 1 . 2 Treads . | . . . . . Leg . | . . . . . Wheel 7 | 2 2 1 . 2 Hover . | . . . . . Flight . | . . . . . Utility 6 | 2 1 1 1 1 Device 2 | 1 . 1 . . Storage 3 | 1 1 . 1 . Processor . | . . . . . Hackware . | . . . . . Protection 1 | . . . . 1 Artifact . | . . . . . Weapon 7 | 3 3 . . 1 Energy Gun 2 | 2 . . . . Energy Cannon . | . . . . . Ballistic Gun 2 | 1 . . . 1 Ballistic Cannon . | . . . . . Launcher 1 | . 1 . . . Special Weapon . | . . . . . Impact Weapon 2 | . 2 . . . Slashing Weapon . | . . . . . Piercing Weapon . | . . . . . Special Melee Weapon . | . . . . . Unidentified Prototypes . | . . . . . Parts Lost 11 | . . 2 . 9 Power 1 | . . . . 1 Propulsion 5 | . . 1 . 4 Utility 3 | . . 1 . 2 Weapon 2 | . . . . 2 Highest Loss Streak 5 | . . 1 . 5 To Critical Strikes . | . . . . . Average Backups 15 | 3 13 18 18 13 Power . | . 1 1 1 . Propulsion 3 | 1 4 3 3 2 Utility 5 | . 4 8 7 5 Weapon 4 | . 4 6 6 4 Tool/Special . | . . . . . Unused Backups 18 | . 1 1 4 12 Power 1 | . . . . 1 Propulsion 2 | . . . . 2 Utility 9 | . . 1 2 6 Weapon 6 | . 1 . 2 3 Tool/Special . | . . . . . Average Slot Usage (%) 99 | . 99 99 100 95 Engine 13 | . 14 14 14 12 Wheel 27 | . 27 28 28 26 Device 11 | . 14 13 14 1 Storage 14 | . 14 14 14 14 Protection 1 | . . . . 11 Energy Gun 1 | . 4 . . . Impact Weapon 25 | . 22 28 28 27 Peak Build Rating 14 | 7 9 10 11 14 Average Rating 9 | 5 8 9 10 11 On Entrance 7 | . 7 9 10 11 Naked Turns . | . . . . . Heaviest Build 52 | 11 48 48 48 52 Greatest Support 20 | 20 20 20 20 20 Greatest Overweight (x) 14 | . 4 2 2 14 Average Overweight (x) 1 | . 1 2 2 2 Largest Inventory Capacity 20 | 8 20 20 20 20 Average Capacity 19 | 7 19 20 20 20 Most Carried 20 | 7 19 20 20 18 Average Carried 16 | 3 13 19 19 17 Final Capacity 20 | 8 20 20 20 20 Final Carried 20 | 7 18 20 18 18 Class Distribution -------------------- 98% | Mutant Dominant Class ---------------- Mutant | -10/Materials Mutant | -10/Mines Mutant | -10/Exiles Mutant | -9/Mines Resources | -11 -10 -10 -10 -9 ----------- Run | Yrd Mat Min Exi Min Matter Collected 670 | 280 180 120 . 90 Remotely . | . . . . . Salvage Created 1067 | 179 724 116 . 48 Parts 39 | 14 19 3 . 3 Haulers Intercepted 2 | . 2 . . . Recyclers Shooed 1 | . 1 . . . Parts Field Recycled . | . . . . . Retrieved Matter . | . . . . . Parts Self-Destructed . | . . . . . Prevented . | . . . . . Kills | -11 -10 -10 -10 -9 ------- Run | Yrd Mat Min Exi Min Combat Hostiles Destroyed 14 | . 7 4 . 3 Melee 6 | . 3 2 . 1 Guns 4 | . 2 . . 2 Classes Destroyed 8 | 2 5 . . 1 Worker 1 | . . . . 1 Builder 1 | . 1 . . . Tunneler 5 | 5 . . . . Hauler 2 | . 2 . . . Recycler 5 | 1 4 . . . Watcher 3 | . 3 . . . Swarmer 7 | . 2 2 . 3 Grunt 7 | . 5 2 . . Best Kill Streak 5 | 5 4 2 . 3 Combat Bots Only 2 | . 2 2 . 2 Max Kills in Single Turn 2 | 1 1 1 . 2 Gunslinging . | . . . . . Exploded . | . . . . . Melee 1 | . 1 1 . 1 Uniques/NPCs Destroyed . | . . . . . Combat | -11 -10 -10 -10 -9 -------- Run | Yrd Mat Min Exi Min Hostile Shots Fired 112 | . 34 37 . 41 Missed 26 | . 12 8 . 6 Hits 86 | . 22 29 . 35 Melee 1 | . . . . 1 Projectile 85 | . 22 29 . 34 AOE 8 | . . . . 8 Damage Taken 1033 | . 238 265 . 530 Core 255 | . 88 22 . 145 Absorbed by Shields . | . . . . . Core Remaining (%) 100 | 100 . . . . Volleys Fired 30 | 11 13 . . 6 Largest 2 | 2 2 . . 1 Hottest 80 | 80 80 . . 24 Shots Fired 54 | 22 26 . . 6 Gun 54 | 22 26 . . 6 Cannon . | . . . . . Launcher . | . . . . . Special . | . . . . . Kinetic 6 | . . . . 6 Thermal 48 | 22 26 . . . Explosive . | . . . . . Electromagnetic . | . . . . . Robot Hit Streak 8 | 8 5 . . 6 Robot Miss Streak 3 | 1 3 . . 3 Penetration Max . | . . . . . Secondary Targets . | . . . . . Shots Hit Robots 74 | 15 38 11 . 10 Core Hits 23 | 7 9 1 . 6 Critical Kills 1 | . 1 . . . Critical Parts Destroyed 7 | . 3 4 . . Critical Strikes 8 | . 4 4 . . Smash 8 | . 4 4 . . Melee Attacks 59 | . 27 22 . 10 Impact 59 | . 27 22 . 10 Slashing . | . . . . . Piercing . | . . . . . Sneak Attacks 9 | . 9 . . . Combat Hostiles . | . . . . . Follow-up Attacks 11 | . 5 4 . 2 Damage Inflicted 1790 | 174 1121 285 . 210 Guns 410 | 174 161 . . 75 Cannons . | . . . . . Explosions . | . . . . . Melee 1372 | . 960 285 . 127 Ramming 8 | . . . . 8 Kinetic 75 | . . . . 75 Thermal 335 | 174 161 . . . Explosive . | . . . . . Electromagnetic . | . . . . . Impact 1372 | . 960 285 . 127 Slashing . | . . . . . Piercing . | . . . . . Highest Corruption . | . . . . . Average Corruption . | . . . . . Corruption Purged . | . . . . . Corruption Blocked . | . . . . . Overload Shots . | . . . . . Overflow Damage 444 | . 284 112 . 48 Projectiles . | . . . . . Explosions . | . . . . . Melee 444 | . 284 112 . 48 Knockbacks 6 | . 5 . . 1 Impact 6 | . 5 . . 1 Kinetic . | . . . . . Secondary . | . . . . . Self-Inflicted Damage 4 | . . . . 4 Shots . | . . . . . Rammed 3 | . . . . 3 Targets Rammed 3 | . . . . 3 Kicked . | . . . . . Crushed . | . . . . . Highest Temperature 111 | 110 111 . . . Average Temperature 39 | 42 37 . . . Received Heat Transfer 171 | . 117 54 . . Siege Activations . | . . . . . Martial Activations . | . . . . . Shielding Activations . | . . . . . Robots Disrupted . | . . . . . Combat Hostiles . | . . . . . Robots Corrupted 12 | . 10 2 . . Combat Hostiles 4 | . 2 2 . . Parts Fried 13 | . 9 3 . 1 Impact Corruptions 24 | . 16 5 . 3 Robots Melted . | . . . . . Combat Hostiles . | . . . . . Parts Melted 3 | 2 1 . . . Heat Transferred 775 | 400 375 . . . Parts Sabotaged . | . . . . . Parts Stolen . | . . . . . Parts Stripped . | . . . . . Power Chain Reactions . | . . . . . Alert | -11 -10 -10 -10 -9 ------- Run | Yrd Mat Min Exi Min Maximum Alert Level . | . . . . . Low Security (%) 100 | 100 100 100 . 100 Level 1 . | . . . . . Level 2 . | . . . . . Level 3 . | . . . . . Level 4 . | . . . . . Level 5 . | . . . . . High Security . | . . . . . Max Security . | . . . . . Peak Influence 62 | 10 62 42 . 55 Initial . | . . . . . Average 9 | 3 14 6 . 6 Influence Increases 546 | 30 303 130 . 83 Destroy 0b10 Robot/C 280 | . 140 80 . 60 Destroy 0b10 Robot/NC 85 | 30 50 . . 5 Destroy Leader 70 | . 40 20 . 10 Successful Hack 21 | . 13 . . 8 Select Force Hacks 30 | . 30 . . . Lose Combat Pursuer 60 | . 30 30 . . Influence Decreases 546 | 30 303 130 . 83 Time Decay 509 | 30 275 121 . 83 Lost Part 9 | . . 9 . . Purge Threat 28 | . 28 . . . Squads Dispatched 2 | . 2 . . . Investigation 1 | . 1 . . . Extermination . | . . . . . Reinforcement 1 | . 1 . . . Assault . | . . . . . Garrison . | . . . . . Intercept . | . . . . . Searches Triggered . | . . . . . Construction Impeded . | . . . . . Haulers Reinforced . | . . . . . Active Scanning Responses . | . . . . . Cargo Convoy Interrupts . | . . . . . Stealth | -11 -10 -10 -10 -9 --------- Run | Yrd Mat Min Exi Min Distress Signals 1 | . 1 . . . Communications Jammed . | . . . . . Distress Signals . | . . . . . Times Spotted 31 | . 18 6 . 7 Peak Tracking Total 4 | . 4 3 . 4 Tactical Retreats 3 | . 1 2 . . Traps | -11 -10 -10 -10 -9 ------- Run | Yrd Mat Min Exi Min Traps Triggered 1 | . 1 . . . Indirectly . | . . . . . Trap Hack Attempts . | . . . . . Triggered . | . . . . . Disarmed . | . . . . . Reprogrammed . | . . . . . Reused . | . . . . . Traps Extracted . | . . . . . Installed . | . . . . . Triggered . | . . . . . Machines | -11 -10 -10 -10 -9 ---------- Run | Yrd Mat Min Exi Min Machines Disabled . | . . . . . Max in Single Turn . | . . . . . Machines Repaired . | . . . . . Machines Dismantled . | . . . . . Machines Sabotaged . | . . . . . Overloaded Fab Kills . | . . . . . Hacking | -11 -10 -10 -10 -9 --------- Run | Yrd Mat Min Exi Min Machines Accessed 7 | . 5 . 1 1 Terminals 4 | . 3 . . 1 Fabricators . | . . . . . Repair Stations . | . . . . . Recycling Units 2 | . 2 . . . Scanalyzers . | . . . . . Garrison Access . | . . . . . Total Hacks 20 | . 15 . 1 4 Successful 6 | . 4 . 1 1 Failed 14 | . 11 . . 3 Catastrophic 2 | . 2 . . . Database Lockouts . | . . . . . Manual 18 | . 13 . 1 4 Terminals 14 | . 10 . . 4 Fabricators . | . . . . . Repair Stations . | . . . . . Recycling Units 5 | . 5 . . . Scanalyzers . | . . . . . Garrison Access . | . . . . . Terminal Hacks 5 | . 3 . 1 1 Branch Access Points 2 | . 1 . . 1 Unreport Threat 1 | . 1 . . . Investigation Status 1 | . 1 . . . Proto ID Catalog 1 | . . . 1 . Fabricator Hacks . | . . . . . Repair Station Hacks . | . . . . . Recycling Unit Hacks . | . . . . . Scanalyzer . | . . . . . Garrison Access Hacks . | . . . . . Unauthorized Hacks 1 | . 1 . . . Terminals . | . . . . . Fabricators . | . . . . . Repair Stations . | . . . . . Recycling Units 1 | . 1 . . . Tunnel 1 | . 1 . . . Scanalyzers . | . . . . . Garrison Access . | . . . . . Data Cores Recovered . | . . . . . Used . | . . . . . Hacking Detections 5 | . 4 . . 1 Full Trace Events . | . . . . . Feedback Events . | . . . . . Feedback Blocked . | . . . . . Robot Schematics Acquired . | . . . . . Robots Built . | . . . . . Authchips . | . . . . . Time . | . . . . . Total Robot Build Rating . | . . . . . Part Schematics Acquired . | . . . . . Parts Built . | . . . . . Authchips . | . . . . . Time . | . . . . . Total Part Build Rating . | . . . . . Parts Repaired . | . . . . . Time . | . . . . . Parts Recycled . | . . . . . Recycled Matter . | . . . . . Retrieved Matter . | . . . . . Retrieved Components . | . . . . . Parts Scanalyzed . | . . . . . Part Schematics Acquired . | . . . . . Parts Damaged . | . . . . . Bothacking | -11 -10 -10 -10 -9 ------------ Run | Yrd Mat Min Exi Min Used RIF Installer . | . . . . . Robots Hacked . | . . . . . Non-combat . | . . . . . Combat . | . . . . . Robot Hacks Applied . | . . . . . Relay Couplers Released . | . . . . . Fabnet Peak Effective % . | . . . . . Robots Rewired . | . . . . . Allies Hacked . | . . . . . Hacks Repelled . | . . . . . Allies | -11 -10 -10 -10 -9 -------- Run | Yrd Mat Min Exi Min Total Allies . | . . . . . Largest Group . | . . . . . Highest-Rated Group . | . . . . . Highest-Rated Ally . | . . . . . Total Orders . | . . . . . Ally Attacks . | . . . . . Total Damage . | . . . . . Kills . | . . . . . Allies Corrupted . | . . . . . Allies Melted . | . . . . . Intel | -11 -10 -10 -10 -9 ------- Run | Yrd Mat Min Exi Min Active Infowar (turns) 2993 | 48 1458 808 633 46 Sensors 1081 | . . 402 633 46 Seismic 1912 | 48 1458 406 . . Robot Analysis Total . | . . . . . Derelict Logs Recovered 1 | . . 1 . . Drone Launches . | . . . . . Drone Recoveries . | . . . . . Exploration | -11 -10 -10 -10 -9 ------------- Run | Yrd Mat Min Exi Min Turns Passed 3606 | 123 1458 841 633 551 Spaces Moved 2591 | 90 974 654 570 303 Core 4 | 3 . . . 1 Treads . | . . . . . Legs . | . . . . . Wheels 2587 | 87 974 654 570 302 Hover . | . . . . . Flight . | . . . . . Fastest Speed 50 | 50 80 110 110 110 Average Speed 108 | 79 107 110 110 112 Slowest Speed 750 | 80 140 110 110 750 Overloaded Moves . | . . . . . Propulsion Burnouts . | . . . . . Robots Hopped . | . . . . . Potential Cave-ins . | . . . . . Cave-ins Triggered . | . . . . . Exploration Rate (%) 67 | 4 100 99 92 44 Regions Visited 4 Branch Regions 3 Pre-discovered Areas 2 | . 1 1 . . Known Exits Taken 1 | . 1 . . . Unknown Exits Taken 3 | 1 . 1 1 . Scrap Searched 4 | . . 1 . 3 Spaces Dug . | . . . . . Terrain Destroyed . | . . . . . Melee . | . . . . . Projectile . | . . . . . AOE . | . . . . . Terrain Rammed . | . . . . . Walls Destroyed . | . . . . . Machines Disabled . | . . . . . Actions | -11 -10 -10 -10 -9 --------- Run | Yrd Mat Min Exi Min Total 3243 | 115 1316 743 579 490 Wait 500 | . 277 63 . 160 Move 2587 | 89 973 653 569 303 Hop . | . . . . . Pick Up 35 | 7 15 5 3 5 Fast Attach 9 | 7 2 . . . Attach 6 | . . 2 . 4 Detach . | . . . . . Swap 11 | 1 7 . 1 2 Drop 16 | . 7 2 6 1 Fire 30 | 11 13 . . 6 Melee 46 | . 22 18 . 6 Ram 3 | . . . . 3 Kick . | . . . . . Crush . | . . . . . Escape Stasis . | . . . . . Rewire . | . . . . . Trap . | . . . . . Miscellaneous . | . . . . . Route ------- -11/Scrapyard -10/Materials (discovered 5 exits: [*Mat x3] / *Min / [*Sub]) -10/Mines (discovered 4 exits: [*Mat x2] / *Exi / [*Sub]) -10/Exiles (discovered 2 exits: *Min x2) -9/Mines (discovered 1 exit: [*Mat]) History --------- Turn | Location | Event 2 | -11/Scrapyard | Met Revision 17 9 | -11/Scrapyard | Discovered new exit (range 15) 124 | -11/Scrapyard | Entered Materials 305 | -10/Materials | Build established: Mutant 653 | -10/Materials | Discovered new exit (range 11) 906 | -10/Materials | Discovered new exit (range 8) 1107 | -10/Materials | Discovered new exit (range 16) 1379 | -10/Materials | Discovered new exit (range 12) 1464 | -10/Materials | Identified exit to Mines 1479 | -10/Materials | Discovered new exit (range 12) 1582 | -10/Materials | Entered Mines 1632 | -10/Mines | Met a Derelict bent on vengeance 1686 | -10/Mines | Discovered new exit (range 5) 1803 | -10/Mines | Deemed a non-threat by the Exiles lab entrance 1804 | -10/Mines | Discovered new exit (range 5) 1844 | -10/Mines | Discovered new exit (range 12) 2044 | -10/Mines | A weapon hastily lodged in a ceiling crevice suddenly fell to the ground 2124 | -10/Mines | Found a Scrap Suit stashed away for nefarious purposes 2130 | -10/Mines | Found Scrap Suit 2143 | -10/Mines | Learned location of Mines (-9) 2296 | -10/Mines | Discovered new exit (range 14) 2423 | -10/Mines | Entered Exiles 2440 | -10/Exiles | Discovered new exit (range 15) 2474 | -10/Exiles | Met 8R-AWN 2493 | -10/Exiles | Met EX-HEX 2553 | -10/Exiles | Met EX-DEC 2571 | -10/Exiles | Visited The Gauntlet 2777 | -10/Exiles | Discovered new exit (range 14) 2865 | -10/Exiles | Met EX-BIN 2878 | -10/Exiles | Aligned with FarCom system 2879 | -10/Exiles | Given EX-Vault access code 2918 | -10/Exiles | Opened EX-Vault 2929 | -10/Exiles | Found Deploy-a-Sentry 2931 | -10/Exiles | Found Deploy-a-Sentry 2933 | -10/Exiles | Found Deploy-a-Sentry 2957 | -10/Exiles | Warned to stay clear of 0b10 Research branches 3056 | -10/Exiles | Left Exiles lab with Deploy-a-Sentry 3056 | -10/Exiles | Entered Mines 3111 | -9/Mines | Core integrity fell below 50% 3142 | -9/Mines | Lost 4 parts (1p2n1u) 3347 | -9/Mines | Found a damaged Exp. Sensor Array with a note attached 3350 | -9/Mines | Found Prototype Device 3358 | -9/Mines | Discovered new exit (range 8) 3567 | -9/Mines | Assembled infested the area 3603 | -9/Mines | Core integrity fell below 20% 3607 | -9/Mines | Destroyed by D-53 Grenadier with Mini Grenade Launcher Last Messages --------------- 03519_ U-05 Engineer lays Concrete. 03567_ ALERT: Infestation in the mines, dispatching Demolisher response squad. 03597_ Hammer destroyed. 03600_ C-30 ARC bursts open, deploying its payload. 03600_ D-53 Grenadier unfolds itself. 03600_ Wheel destroyed. 03600_ as-31149 destroyed. 03600_ Slammed into D-53 Grenadier. 03602_ The unstable cave ceiling collapses. 03603_ Wheel destroyed. 03603_ Lgt. Armor Plating destroyed. 03603_ Slammed into D-53 Grenadier. 03604_ The unstable cave ceiling collapses. 03604_ U-05 Engineer lays Concrete. 03605_ The unstable cave ceiling collapses. 03605_ U-05 Engineer lays Concrete. 03606_ Hammer destroyed. 03607_ U-05 Engineer lays Concrete. Map ----- +----------------------------------------------------+ | ????????????????????????????????????????#### #T#?? | | ????????????????????????????????????????# #?? | | ????????????????????????????????????????# """#?? | | ????????????????????????????????????????# """#?? | | ????????????????????????????????????????# """#?? | | ????????????????????????????????????????# #?? | | ????????????????????????????????????????#### ###?? | | ??????????????????????????????????????###### #???? | | ??????????????????????????????????????# #???? | | ??????????????????????????????????????# ######???? | | ??????????????????????????????????????# #????????? | | ??????????????????????????????????????# #???####?? | | ??????????????????????????????????????# #??## ##? | | ??????????????????????????????????????# #### ## | | ?????????????????????????????########## %= # | | ?????????????????????????????# ##### | | ?????????????????????????????# ##########???## | | ??????????????????????????#### #######???????# | | ?????????????????????????## #??????## | | ?????????????????????????# #?????## | | ??????????????????????#### ### #????## | | ?????????????????????## u ##?# #?#### ## | | ????????????????????## ##??# ### ##### | | ????????????????????# #???# ##???? | | ????????????????????# d ##??# ##????# | | ????????????????????# @ #??#### ####???### | | ?????????????? d #?????####?????## | | ?????????? ##?????????????## | | ??????????? ##### ##?????????????## | | ??????????? ???????## #?????????????## | | ??????????????????????# ######?????????????# | | ??????????????????????# ???????????????????# | | ??????????????????????# ???????????????????## | | ??????????????????????# ????????????????????## | | ?????????????????????? ??????????????????????## # | | ?????????????????????? ???????????????????????# # | | ?????????????????????? ???????????????????????# | | ????????????????????? ????????????????????????# | | ?????????????????????#????????????????????????# | | ??????????????????????????????????????????????## | | ???????????????????????????????????????????????### | | ?????????????????????????????????????????????????? | | ?????????????????????????????????????????????????? | | ?????????????????????????????????????????????????? | | ?????????????????????????????????????????????????? | | ?????????????????????????????????????????????????? | | ?????????????????????????????????????????????????? | | ?????????????????????????????????????????????????? | | ?????????????????????????????????????????????????? | | ?????????????????????????????????????????????????? | +----------------------------------------------------+ Best States ------------- Heat Dissipation 25 Energy Generation 10 Energy Capacity 250 Matter Stores 300 Matter Capacity 300 Sight Range 16 Robot Scan Range 14 Terrain Scan Density 10 Armor Coverage 150 Evasion (%) 44 Item Schematics ----------------- None Robot Schematics ------------------ None Fabricated ------------ Nothing Repaired ---------- Nothing Alien Tech Used ----------------- None Achievements -------------- Brute Force Challenges ------------ None Game ------ Seed RefineryAngularCompactor Manual? 0 Play Time 00:24:31 Cumulative 8.3 hours Start 2025.06.01 @ 21:18:10 End 2025.06.01 @ 21:40:12 Sessions 1 Manual Loads 0 Difficulty Rogue Special Mode None Game No. 14 Rogue 14 Adventurer 0 Explorer 0 Win Type - Total 0 Types 0/0/0/0/0/0/0/0/0/0 Lore% 24 Gallery% 12 Achievement% 23 Wizard Run 0 Options --------- Layout 1 ASCII 0 Keyboard 0 Movement Numpad Keybinds 0 Fullscreen 2 Font 24/Smallcaps Map View 50x35 Zoom Use 0% Tactical HUD 1 Map Filters NONE Filters NONE Steam 1 RUN: ffd41a35-8787-4e8a-8039-2c05de9da7da